[Event "Late-Titled-Tuesday-Blitz-March-26-2024"]
[Site "Chess.com"]
[Date "2024.03.26"]
[Round "9"]
[White "Budisavljevic"]
[Black "xasid81"]
[Result "0-1"]
[WhiteElo "2766"]
[BlackElo "2639"]
[TimeControl "180+1"]
[EndTime "15:43:50 PDT"]
[Termination "xasid81 won by resignation"]

1. d4 {[%clk 0:03:00.9]} 1... c6 {[%clk 0:02:59.6]} 2. Bf4 {[%clk 0:02:58.8]}
2... d5 {[%clk 0:02:59.7]} 3. e3 {[%clk 0:02:57.4]} 3... Qb6 {[%clk 0:02:59.6]}
4. b3 {[%clk 0:02:55.9]} 4... Bf5 {[%clk 0:02:59.6]} 5. Nf3 {[%clk 0:02:54.9]}
5... Nd7 {[%clk 0:02:59.2]} 6. Bd3 {[%clk 0:02:53.5]} 6... Bxd3 {[%clk
0:02:58.7]} 7. Qxd3 {[%clk 0:02:54.4]} 7... e6 {[%clk 0:02:59.1]} 8. O-O {[%clk
0:02:53.7]} 8... Ngf6 {[%clk 0:02:59.3]} 9. c4 {[%clk 0:02:53.8]} 9... Be7
{[%clk 0:02:58.6]} 10. h3 {[%clk 0:02:53.7]} 10... O-O {[%clk 0:02:58.2]} 11.
Nc3 {[%clk 0:02:54.3]} 11... Bb4 {[%clk 0:02:54.5]} 12. Ne2 {[%clk 0:02:51.7]}
12... Rfe8 {[%clk 0:02:52.7]} 13. a4 {[%clk 0:02:31.9]} 13... c5 {[%clk
0:02:45.8]} 14. Be5 {[%clk 0:02:17.1]} 14... Nxe5 {[%clk 0:02:34]} 15. dxe5
{[%clk 0:02:18]} 15... dxc4 {[%clk 0:02:26.1]} 16. Qxc4 {[%clk 0:02:14]} 16...
Nd7 {[%clk 0:02:18.8]} 17. Ng3 {[%clk 0:02:13.8]} 17... Qc7 {[%clk 0:02:15.4]}
18. Qf4 {[%clk 0:02:10.7]} 18... Bc3 {[%clk 0:02:06.2]} 19. Rac1 {[%clk
0:02:10.5]} 19... Bxe5 {[%clk 0:01:58.4]} 20. Nxe5 {[%clk 0:02:07.6]} 20... Qxe5
{[%clk 0:01:48.4]} 21. Qxe5 {[%clk 0:02:05.9]} 21... Nxe5 {[%clk 0:01:49.3]} 22.
Rxc5 {[%clk 0:02:06]} 22... Nc6 {[%clk 0:01:47.7]} 23. Ne4 {[%clk 0:01:53.3]}
23... Red8 {[%clk 0:01:45.4]} 24. Rfc1 {[%clk 0:01:52.4]} 24... h6 {[%clk
0:01:35.4]} 25. Kf1 {[%clk 0:01:52.1]} 25... f5 {[%clk 0:01:10.4]} 26. Nc3
{[%clk 0:01:49.7]} 26... Rd3 {[%clk 0:01:08.2]} 27. Rd1 {[%clk 0:01:46]} 27...
Rxd1+ {[%clk 0:01:06]} 28. Nxd1 {[%clk 0:01:45.9]} 28... Rd8 {[%clk 0:01:05.2]}
29. Ke2 {[%clk 0:01:45.6]} 29... Kf7 {[%clk 0:01:01.5]} 30. Nb2 {[%clk
0:01:45.4]} 30... Ke7 {[%clk 0:00:58.3]} 31. Rc3 {[%clk 0:01:41.4]} 31... Rd5
{[%clk 0:00:48.2]} 32. Nd3 {[%clk 0:01:41.6]} 32... Kd6 {[%clk 0:00:46.2]} 33.
b4 {[%clk 0:01:40.7]} 33... b6 {[%clk 0:00:22]} 34. Nf4 {[%clk 0:01:36.6]} 34...
Re5 {[%clk 0:00:17.9]} 35. b5 {[%clk 0:01:28.3]} 35... Ne7 {[%clk 0:00:15.4]}
36. f3 {[%clk 0:01:20.6]} 36... g5 {[%clk 0:00:14.8]} 37. Nd3 {[%clk 0:01:20.8]}
37... Rd5 {[%clk 0:00:14.7]} 38. Rc4 {[%clk 0:01:20.2]} 38... Kd7 {[%clk
0:00:13.1]} 39. e4 {[%clk 0:01:16]} 39... fxe4 {[%clk 0:00:13.2]} 40. fxe4
{[%clk 0:01:16.9]} 40... Rd6 {[%clk 0:00:13.7]} 41. Ne5+ {[%clk 0:01:15.8]}
41... Ke8 {[%clk 0:00:13.6]} 42. Rc8+ {[%clk 0:01:10.5]} 42... Nxc8 {[%clk
0:00:13.4]} 0-1

[Event "Late-Titled-Tuesday-Blitz-March-26-2024"]
[Site "Chess.com"]
[Date "2024.03.26"]
[Round "9"]
[White "DACF2905"]
[Black "RantomOpening"]
[Result "0-1"]
[WhiteElo "2405"]
[BlackElo "2573"]
[TimeControl "180+1"]
[EndTime "15:43:54 PDT"]
[Termination "RantomOpening won by checkmate"]

1. e4 {[%clk 0:02:27.1]} 1... c5 {[%clk 0:02:59.8]} 2. Nc3 {[%clk 0:02:26.1]}
2... e6 {[%clk 0:02:59.6]} 3. Nge2 {[%clk 0:02:25.6]} 3... Nc6 {[%clk
0:02:59.9]} 4. g3 {[%clk 0:02:26.1]} 4... d5 {[%clk 0:03:00.1]} 5. exd5 {[%clk
0:02:24.2]} 5... exd5 {[%clk 0:03:01]} 6. d4 {[%clk 0:02:24.5]} 6... cxd4 {[%clk
0:03:01.9]} 7. Nxd4 {[%clk 0:02:24.3]} 7... Nf6 {[%clk 0:03:02.8]} 8. Bg2 {[%clk
0:02:23.9]} 8... Bg4 {[%clk 0:03:03.4]} 9. f3 {[%clk 0:02:18.8]} 9... Bd7 {[%clk
0:03:03.5]} 10. O-O {[%clk 0:02:18.3]} 10... Be7 {[%clk 0:03:03.1]} 11. Be3
{[%clk 0:02:18.8]} 11... O-O {[%clk 0:03:03.2]} 12. Kh1 {[%clk 0:02:17]} 12...
Re8 {[%clk 0:03:03.5]} 13. Qd2 {[%clk 0:02:17.1]} 13... Rc8 {[%clk 0:03:02.4]}
14. Bg1 {[%clk 0:02:17.7]} 14... Ne5 {[%clk 0:03:01.9]} 15. Rab1 {[%clk
0:01:55.5]} 15... a6 {[%clk 0:03:00.4]} 16. Rfe1 {[%clk 0:01:53.3]} 16... Nc4
{[%clk 0:03:00.1]} 17. Qd3 {[%clk 0:01:52.8]} 17... Bc5 {[%clk 0:02:55.7]} 18.
b3 {[%clk 0:01:37.4]} 18... Ne5 {[%clk 0:02:54.9]} 19. Rxe5 {[%clk 0:01:20.3]}
19... Rxe5 {[%clk 0:02:54.9]} 20. f4 {[%clk 0:01:20.5]} 20... Re8 {[%clk
0:02:54.2]} 21. Nxd5 {[%clk 0:01:17.4]} 21... Nxd5 {[%clk 0:02:53.9]} 22. Bxd5
{[%clk 0:01:17.3]} 22... Bh3 {[%clk 0:02:42.8]} 23. c4 {[%clk 0:01:14]} 23...
Qf6 {[%clk 0:02:35.6]} 24. Rd1 {[%clk 0:01:11]} 24... Re7 {[%clk 0:02:28.2]} 25.
Nf3 {[%clk 0:00:59.1]} 25... Bxg1 {[%clk 0:02:26.2]} 26. Kxg1 {[%clk 0:00:59.1]}
26... Bg4 {[%clk 0:02:25.9]} 27. Be4 {[%clk 0:00:45.1]} 27... Ree8 {[%clk
0:02:17.5]} 28. Bxh7+ {[%clk 0:00:39]} 28... Kh8 {[%clk 0:02:17.7]} 29. Be4
{[%clk 0:00:39.6]} 29... Rcd8 {[%clk 0:02:17.9]} 30. Bd5 {[%clk 0:00:39.7]}
30... Qb6+ {[%clk 0:02:15.5]} 31. Kg2 {[%clk 0:00:36.9]} 31... Re3 {[%clk
0:02:15.4]} 32. Qd4 {[%clk 0:00:36.6]} 32... Bxf3+ {[%clk 0:02:14]} 33. Kf2
{[%clk 0:00:28.4]} 33... Qxd4 {[%clk 0:02:01.6]} 34. Rxd4 {[%clk 0:00:27.2]}
34... Bxd5 {[%clk 0:01:59.6]} 35. Kxe3 {[%clk 0:00:26.4]} 35... Re8+ {[%clk
0:01:59.7]} 36. Kf2 {[%clk 0:00:23.9]} 36... Bc6 {[%clk 0:01:56.5]} 37. a4
{[%clk 0:00:18.6]} 37... a5 {[%clk 0:01:56.3]} 38. g4 {[%clk 0:00:17.2]} 38...
g6 {[%clk 0:01:56.1]} 39. h4 {[%clk 0:00:15.5]} 39... Re4 {[%clk 0:01:55.7]} 40.
Rd8+ {[%clk 0:00:13]} 40... Kg7 {[%clk 0:01:54.4]} 41. f5 {[%clk 0:00:12.9]}
41... Rxg4 {[%clk 0:01:53.3]} 42. fxg6 {[%clk 0:00:13.6]} 42... Rxg6 {[%clk
0:01:52.2]} 43. Ra8 {[%clk 0:00:13.5]} 43... Rf6+ {[%clk 0:01:52.4]} 44. Ke2
{[%clk 0:00:12.3]} 44... Rf3 {[%clk 0:01:53.3]} 45. Rxa5 {[%clk 0:00:11.1]}
45... Rxb3 {[%clk 0:01:54]} 46. Kd2 {[%clk 0:00:10.8]} 46... Rb4 {[%clk
0:01:53.6]} 47. Kc3 {[%clk 0:00:09.7]} 47... Rxa4 {[%clk 0:01:53.1]} 48. Rg5+
{[%clk 0:00:10.1]} 48... Kf6 {[%clk 0:01:52.9]} 49. Kd4 {[%clk 0:00:09.2]} 49...
b5 {[%clk 0:01:51]} 50. Rc5 {[%clk 0:00:07.5]} 50... Rxc4+ {[%clk 0:01:51.1]}
51. Rxc4 {[%clk 0:00:07.6]} 51... bxc4 {[%clk 0:01:52]} 52. Kxc4 {[%clk
0:00:08.4]} 52... Kg6 {[%clk 0:01:51.6]} 53. Kd4 {[%clk 0:00:09.3]} 53... Kh5
{[%clk 0:01:51.6]} 54. Ke3 {[%clk 0:00:10.2]} 54... Kxh4 {[%clk 0:01:51.5]} 55.
Kf2 {[%clk 0:00:11.1]} 55... Be8 {[%clk 0:01:51.5]} 56. Kg1 {[%clk 0:00:12]}
56... f5 {[%clk 0:01:52]} 57. Kf2 {[%clk 0:00:12.4]} 57... f4 {[%clk 0:01:52.9]}
58. Kf3 {[%clk 0:00:13.3]} 58... Kg5 {[%clk 0:01:53.6]} 59. Kf2 {[%clk
0:00:13.7]} 59... Kg4 {[%clk 0:01:54.5]} 60. Kf1 {[%clk 0:00:14.5]} 60... f3
{[%clk 0:01:55.4]} 61. Kf2 {[%clk 0:00:14.8]} 61... Kf4 {[%clk 0:01:56.3]} 62.
Kf1 {[%clk 0:00:15.6]} 62... Kg3 {[%clk 0:01:57.2]} 63. Kg1 {[%clk 0:00:16]}
63... f2+ {[%clk 0:01:54.8]} 64. Kf1 {[%clk 0:00:16.9]} 64... Bb5# {[%clk
0:01:54]} 0-1

[Event "Late-Titled-Tuesday-Blitz-March-26-2024"]
[Site "Chess.com"]
[Date "2024.03.26"]
[Round "9"]
[White "Alex_Banzea"]
[Black "Romkachess"]
[Result "1-0"]
[WhiteElo "2542"]
[BlackElo "2675"]
[TimeControl "180+1"]
[EndTime "15:43:57 PDT"]
[Termination "Alex_Banzea won on time"]

1. d4 {[%clk 0:03:00.9]} 1... Nf6 {[%clk 0:02:51.5]} 2. Nc3 {[%clk 0:03:00.8]}
2... d5 {[%clk 0:02:51.3]} 3. Bf4 {[%clk 0:03:01.4]} 3... a6 {[%clk 0:02:51.9]}
4. e3 {[%clk 0:03:01.9]} 4... e6 {[%clk 0:02:52.1]} 5. Nf3 {[%clk 0:03:01.9]}
5... c5 {[%clk 0:02:52.7]} 6. dxc5 {[%clk 0:03:01.8]} 6... Bxc5 {[%clk
0:02:52.3]} 7. Bd3 {[%clk 0:03:02.5]} 7... Nc6 {[%clk 0:02:52.8]} 8. O-O {[%clk
0:03:02.9]} 8... O-O {[%clk 0:02:52.5]} 9. e4 {[%clk 0:03:03.6]} 9... Be7 {[%clk
0:02:53]} 10. e5 {[%clk 0:02:58.9]} 10... Nh5 {[%clk 0:02:45]} 11. Bd2 {[%clk
0:02:57.4]} 11... g6 {[%clk 0:02:43.3]} 12. Bh6 {[%clk 0:02:49.7]} 12... Re8
{[%clk 0:02:40.4]} 13. Qd2 {[%clk 0:02:46.2]} 13... b5 {[%clk 0:02:28.2]} 14.
Rfe1 {[%clk 0:02:42.3]} 14... Bb7 {[%clk 0:02:22.1]} 15. Ne2 {[%clk 0:02:42.2]}
15... Nb4 {[%clk 0:02:15]} 16. Ned4 {[%clk 0:02:40]} 16... Nxd3 {[%clk
0:02:11.9]} 17. cxd3 {[%clk 0:02:40.5]} 17... Rc8 {[%clk 0:02:12]} 18. g4 {[%clk
0:02:30.7]} 18... Ng7 {[%clk 0:02:01.1]} 19. Kg2 {[%clk 0:02:28.9]} 19... Qb6
{[%clk 0:01:35.4]} 20. Qf4 {[%clk 0:02:13.2]} 20... Qc7 {[%clk 0:00:58.2]} 21.
Bxg7 {[%clk 0:02:09.9]} 21... Kxg7 {[%clk 0:00:55.7]} 22. g5 {[%clk 0:02:10.8]}
22... Rh8 {[%clk 0:00:33.2]} 23. h4 {[%clk 0:02:05.1]} 23... h5 {[%clk
0:00:33.5]} 24. gxh6+ {[%clk 0:01:23.9]} 24... Rxh6 {[%clk 0:00:32.1]} 25. Ng5
{[%clk 0:01:23.2]} 25... Bxg5 {[%clk 0:00:19.2]} 26. hxg5 {[%clk 0:01:21]} 26...
Rh5 {[%clk 0:00:18.9]} 27. Qf6+ {[%clk 0:01:12.3]} 27... Kg8 {[%clk 0:00:12.4]}
28. Nxe6 {[%clk 0:00:54.3]} 28... d4+ {[%clk 0:00:09.7]} 29. Kg3 {[%clk
0:00:52.1]} 29... fxe6 {[%clk 0:00:03.8]} 30. Qxg6+ {[%clk 0:00:49.7]} 30... Qg7
{[%clk 0:00:03.9]} 31. Qxh5 {[%clk 0:00:47.8]} 31... Rf8 {[%clk 0:00:04.8]} 32.
f4 {[%clk 0:00:43.8]} 32... Qd7 {[%clk 0:00:01.9]} 33. Qg6+ {[%clk 0:00:42.6]}
1-0

[Event "Late-Titled-Tuesday-Blitz-March-26-2024"]
[Site "Chess.com"]
[Date "2024.03.26"]
[Round "9"]
[White "1mbl4"]
[Black "jstopa4"]
[Result "1-0"]
[WhiteElo "2630"]
[BlackElo "2728"]
[TimeControl "180+1"]
[EndTime "15:43:59 PDT"]
[Termination "1mbl4 won by checkmate"]

1. d4 {[%clk 0:02:49.6]} 1... Nf6 {[%clk 0:02:58.8]} 2. Nf3 {[%clk 0:02:49.3]}
2... g6 {[%clk 0:02:56.5]} 3. Bf4 {[%clk 0:02:49.3]} 3... Bg7 {[%clk 0:02:55.3]}
4. e3 {[%clk 0:02:49.7]} 4... O-O {[%clk 0:02:54.3]} 5. h3 {[%clk 0:02:48.8]}
5... c5 {[%clk 0:02:53.6]} 6. c3 {[%clk 0:02:48.2]} 6... b6 {[%clk 0:02:35.7]}
7. Be2 {[%clk 0:02:46.5]} 7... Bb7 {[%clk 0:02:35.7]} 8. O-O {[%clk 0:02:46]}
8... d6 {[%clk 0:02:36.1]} 9. a4 {[%clk 0:02:45.5]} 9... Nc6 {[%clk 0:02:32.8]}
10. Na3 {[%clk 0:02:44.4]} 10... Rc8 {[%clk 0:02:17.7]} 11. Bh2 {[%clk
0:02:43.3]} 11... Ne4 {[%clk 0:02:12.3]} 12. Nd2 {[%clk 0:02:39.3]} 12... Nxd2
{[%clk 0:02:08.6]} 13. Qxd2 {[%clk 0:02:40.2]} 13... Na5 {[%clk 0:02:03.7]} 14.
Qd1 {[%clk 0:02:38.7]} 14... Qd7 {[%clk 0:02:00.8]} 15. b4 {[%clk 0:02:26.6]}
15... cxb4 {[%clk 0:01:58.2]} 16. cxb4 {[%clk 0:02:27.4]} 16... Nc6 {[%clk
0:01:54.9]} 17. Rb1 {[%clk 0:02:24.9]} 17... Rfd8 {[%clk 0:01:47.6]} 18. Nc4
{[%clk 0:02:15.9]} 18... d5 {[%clk 0:01:40.8]} 19. Nd2 {[%clk 0:01:58.7]} 19...
e6 {[%clk 0:01:36]} 20. Nf3 {[%clk 0:01:36.8]} 20... Qe7 {[%clk 0:01:33.8]} 21.
Qd2 {[%clk 0:01:35.8]} 21... h5 {[%clk 0:01:22.3]} 22. Bb5 {[%clk 0:01:19.2]}
22... Bf8 {[%clk 0:01:15.6]} 23. Bxc6 {[%clk 0:01:16.4]} 23... Bxc6 {[%clk
0:01:12.4]} 24. b5 {[%clk 0:01:16.4]} 24... Be8 {[%clk 0:01:11.3]} 25. a5 {[%clk
0:01:11.6]} 25... Qa3 {[%clk 0:01:01.3]} 26. axb6 {[%clk 0:01:10.6]} 26... axb6
{[%clk 0:01:01.5]} 27. Ne5 {[%clk 0:01:08.2]} 27... Qa4 {[%clk 0:00:56.5]} 28.
g4 {[%clk 0:01:01.8]} 28... hxg4 {[%clk 0:00:55.7]} 29. Nxg4 {[%clk 0:01:00.7]}
29... Bg7 {[%clk 0:00:52.5]} 30. Be5 {[%clk 0:00:54.2]} 30... Qc2 {[%clk
0:00:42.8]} 31. Qb4 {[%clk 0:00:43.3]} 31... Qf5 {[%clk 0:00:34.9]} 32. Qe7
{[%clk 0:00:38.8]} 32... Rd7 {[%clk 0:00:31.5]} 33. Qh4 {[%clk 0:00:37.8]} 33...
g5 {[%clk 0:00:29.3]} 34. Nh6+ {[%clk 0:00:34.8]} 34... Bxh6 {[%clk 0:00:20.9]}
35. Qxh6 {[%clk 0:00:35.7]} 35... f6 {[%clk 0:00:21.4]} 36. Qxf6 {[%clk
0:00:35]} 36... Rf7 {[%clk 0:00:19.1]} 37. Qh8# {[%clk 0:00:34]} 1-0

[Event "Late-Titled-Tuesday-Blitz-March-26-2024"]
[Site "Chess.com"]
[Date "2024.03.26"]
[Round "9"]
[White "DeArron_Fox"]
[Black "reevecanada"]
[Result "1-0"]
[WhiteElo "2522"]
[BlackElo "2653"]
[TimeControl "180+1"]
[EndTime "15:44:04 PDT"]
[Termination "DeArron_Fox won by checkmate"]

1. d4 {[%clk 0:02:47.9]} 1... b6 {[%clk 0:02:57]} 2. e4 {[%clk 0:02:45.9]} 2...
Bb7 {[%clk 0:02:57.9]} 3. Bd3 {[%clk 0:02:46]} 3... f5 {[%clk 0:02:55.9]} 4.
exf5 {[%clk 0:02:44.6]} 4... Bxg2 {[%clk 0:02:55.5]} 5. Qh5+ {[%clk 0:02:44.1]}
5... g6 {[%clk 0:02:55.4]} 6. fxg6 {[%clk 0:02:45]} 6... Bg7 {[%clk 0:02:55.4]}
7. gxh7+ {[%clk 0:02:27]} 7... Kf8 {[%clk 0:02:54.2]} 8. Nh3 {[%clk 0:01:45]}
8... Nf6 {[%clk 0:02:49.3]} 9. Qh4 {[%clk 0:01:44.7]} 9... Bxh1 {[%clk
0:02:47.5]} 10. Nf4 {[%clk 0:01:43.6]} 10... Bb7 {[%clk 0:02:37.7]} 11. Ng6+
{[%clk 0:01:38]} 11... Kf7 {[%clk 0:02:36.5]} 12. Ne5+ {[%clk 0:01:35]} 12...
Kf8 {[%clk 0:02:31]} 13. Bh6 {[%clk 0:01:31.4]} 13... Nxh7 {[%clk 0:00:36.2]}
14. Bxg7+ {[%clk 0:00:36]} 14... Kxg7 {[%clk 0:00:33.6]} 15. Qg4+ {[%clk
0:00:29.7]} 15... Kf8 {[%clk 0:00:34.1]} 16. Qh5 {[%clk 0:00:07.5]} 16... Qe8
{[%clk 0:00:19.9]} 17. Bg6 {[%clk 0:00:07.2]} 17... Qc8 {[%clk 0:00:13.8]} 18.
Bxh7 {[%clk 0:00:06.7]} 18... Bd5 {[%clk 0:00:08.8]} 19. Qh6+ {[%clk 0:00:04.5]}
19... Ke8 {[%clk 0:00:06.6]} 20. Bg6+ {[%clk 0:00:04.9]} 20... Kd8 {[%clk
0:00:07.3]} 21. Qxh8+ {[%clk 0:00:05.6]} 21... Bg8 {[%clk 0:00:07.3]} 22. Qxg8#
{[%clk 0:00:06.2]} 1-0

[Event "Late-Titled-Tuesday-Blitz-March-26-2024"]
[Site "Chess.com"]
[Date "2024.03.26"]
[Round "9"]
[White "mightysmasher"]
[Black "cthulhuuu"]
[Result "0-1"]
[WhiteElo "2573"]
[BlackElo "2435"]
[TimeControl "180+1"]
[EndTime "15:44:12 PDT"]
[Termination "cthulhuuu won by checkmate"]

1. e4 {[%clk 0:03:00.9]} 1... d6 {[%clk 0:02:58.5]} 2. d4 {[%clk 0:03:00.4]}
2... Nf6 {[%clk 0:02:57.4]} 3. Nc3 {[%clk 0:02:59.8]} 3... c6 {[%clk 0:02:57.3]}
4. Nf3 {[%clk 0:02:59.7]} 4... Bg4 {[%clk 0:02:56.3]} 5. Be2 {[%clk 0:02:59.8]}
5... e6 {[%clk 0:02:56.4]} 6. O-O {[%clk 0:03:00]} 6... d5 {[%clk 0:02:56.6]} 7.
e5 {[%clk 0:02:59.6]} 7... Nfd7 {[%clk 0:02:57.2]} 8. h3 {[%clk 0:02:59.4]} 8...
Bh5 {[%clk 0:02:57.1]} 9. Be3 {[%clk 0:02:58.9]} 9... c5 {[%clk 0:02:52.9]} 10.
Nb5 {[%clk 0:02:53.8]} 10... a6 {[%clk 0:02:51.6]} 11. Nd6+ {[%clk 0:02:53.2]}
11... Bxd6 {[%clk 0:02:51.7]} 12. exd6 {[%clk 0:02:53.1]} 12... Bxf3 {[%clk
0:02:44.3]} 13. Bxf3 {[%clk 0:02:52.1]} 13... cxd4 {[%clk 0:02:44.6]} 14. Qxd4
{[%clk 0:02:50.5]} 14... O-O {[%clk 0:02:42.8]} 15. Rad1 {[%clk 0:02:49.5]}
15... Nc6 {[%clk 0:02:43]} 16. Qd2 {[%clk 0:02:41.4]} 16... Nde5 {[%clk
0:02:42.2]} 17. Be2 {[%clk 0:02:38.8]} 17... Qxd6 {[%clk 0:02:40.8]} 18. f4
{[%clk 0:02:34.8]} 18... Nd7 {[%clk 0:02:08]} 19. c4 {[%clk 0:02:18.5]} 19...
Nf6 {[%clk 0:02:07.5]} 20. f5 {[%clk 0:02:14.6]} 20... Rad8 {[%clk 0:02:01]} 21.
Bf3 {[%clk 0:02:10.7]} 21... Ne5 {[%clk 0:01:56.8]} 22. cxd5 {[%clk 0:02:04.4]}
22... Nxf3+ {[%clk 0:01:54.8]} 23. Rxf3 {[%clk 0:02:03.4]} 23... exd5 {[%clk
0:01:47]} 24. Bd4 {[%clk 0:02:00.5]} 24... Ne4 {[%clk 0:01:47.2]} 25. Qd3 {[%clk
0:01:58.3]} 25... f6 {[%clk 0:01:47.1]} 26. Qb3 {[%clk 0:01:48]} 26... b5 {[%clk
0:01:43.4]} 27. Re3 {[%clk 0:01:46.7]} 27... Kh8 {[%clk 0:01:35.5]} 28. Rde1
{[%clk 0:01:40.1]} 28... Qd7 {[%clk 0:01:22]} 29. Qd3 {[%clk 0:01:35.5]} 29...
Qxf5 {[%clk 0:01:16.8]} 30. Rf3 {[%clk 0:01:31.7]} 30... Qg6 {[%clk 0:01:14.3]}
31. Rfe3 {[%clk 0:01:23.7]} 31... Rfe8 {[%clk 0:00:59.1]} 32. b3 {[%clk
0:01:19]} 32... Nd6 {[%clk 0:00:57.7]} 33. Rxe8+ {[%clk 0:01:14.7]} 33... Rxe8
{[%clk 0:00:57.4]} 34. Rxe8+ {[%clk 0:01:14.4]} 34... Qxe8 {[%clk 0:00:42]} 35.
Qg3 {[%clk 0:01:10.2]} 35... Nf5 {[%clk 0:00:34.7]} 36. Qf4 {[%clk 0:01:09.7]}
36... Nxd4 {[%clk 0:00:34.2]} 37. Qxd4 {[%clk 0:01:09.3]} 37... Qe1+ {[%clk
0:00:33.9]} 38. Kh2 {[%clk 0:01:09.2]} 38... Qe5+ {[%clk 0:00:34.6]} 39. Qxe5
{[%clk 0:01:09.3]} 39... fxe5 {[%clk 0:00:35.5]} 40. Kg3 {[%clk 0:01:08.9]}
40... g6 {[%clk 0:00:34]} 41. Kg4 {[%clk 0:01:08.6]} 41... Kg7 {[%clk
0:00:34.2]} 42. Kf3 {[%clk 0:01:08.8]} 42... Kf6 {[%clk 0:00:34.6]} 43. g4
{[%clk 0:01:09.1]} 43... h5 {[%clk 0:00:32.4]} 44. Kg3 {[%clk 0:01:07]} 44...
hxg4 {[%clk 0:00:32.1]} 45. Kxg4 {[%clk 0:01:07.4]} 45... d4 {[%clk 0:00:32]}
46. Kh4 {[%clk 0:01:07.1]} 46... d3 {[%clk 0:00:32]} 47. Kg3 {[%clk 0:01:07.1]}
47... d2 {[%clk 0:00:32.2]} 48. h4 {[%clk 0:01:07.6]} 48... d1=Q {[%clk
0:00:31.8]} 49. h5 {[%clk 0:01:08.5]} 49... gxh5 {[%clk 0:00:31.6]} 50. Kf2
{[%clk 0:01:08.7]} 50... e4 {[%clk 0:00:31]} 51. b4 {[%clk 0:01:08.4]} 51...
Qf3+ {[%clk 0:00:31.3]} 52. Kg1 {[%clk 0:01:08.1]} 52... e3 {[%clk 0:00:31.2]}
53. a4 {[%clk 0:01:06.4]} 53... Qf2+ {[%clk 0:00:31]} 54. Kh1 {[%clk 0:01:06.1]}
54... e2 {[%clk 0:00:31]} 55. a5 {[%clk 0:01:05.7]} 55... e1=Q# {[%clk
0:00:30.6]} 0-1

[Event "Late-Titled-Tuesday-Blitz-March-26-2024"]
[Site "Chess.com"]
[Date "2024.03.26"]
[Round "9"]
[White "Genghis_K"]
[Black "kingofthenil"]
[Result "0-1"]
[WhiteElo "2913"]
[BlackElo "2792"]
[TimeControl "180+1"]
[EndTime "15:44:14 PDT"]
[Termination "kingofthenil won on time"]

1. e4 {[%clk 0:02:50.4]} 1... Nc6 {[%clk 0:03:00.4]} 2. Nf3 {[%clk 0:02:38.5]}
2... d5 {[%clk 0:02:59.7]} 3. exd5 {[%clk 0:02:34.9]} 3... Qxd5 {[%clk
0:03:00.6]} 4. Nc3 {[%clk 0:02:35.6]} 4... Qh5 {[%clk 0:03:00.1]} 5. Nb5 {[%clk
0:02:35.9]} 5... Kd8 {[%clk 0:03:00.2]} 6. d4 {[%clk 0:02:35.6]} 6... Bg4 {[%clk
0:03:00.7]} 7. Bf4 {[%clk 0:02:25.2]} 7... a6 {[%clk 0:03:01.2]} 8. d5 {[%clk
0:02:23.5]} 8... Bxf3 {[%clk 0:03:01]} 9. gxf3 {[%clk 0:02:17.9]} 9... Ne5
{[%clk 0:03:01.2]} 10. Nd4 {[%clk 0:02:14.8]} 10... Nf6 {[%clk 0:03:01.3]} 11.
Be2 {[%clk 0:01:54.9]} 11... Ng6 {[%clk 0:02:57.5]} 12. Bg3 {[%clk 0:01:47.8]}
12... Qxd5 {[%clk 0:02:57.2]} 13. c4 {[%clk 0:01:46.2]} 13... Qd7 {[%clk
0:02:57.2]} 14. Qb3 {[%clk 0:01:42.1]} 14... e5 {[%clk 0:02:51.8]} 15. Qxb7
{[%clk 0:01:38.2]} 15... Bb4+ {[%clk 0:02:34.1]} 16. Kf1 {[%clk 0:01:30.2]}
16... exd4 {[%clk 0:02:13.3]} 17. Qxa8+ {[%clk 0:01:24.7]} 17... Ke7 {[%clk
0:02:13.4]} 18. Qb7 {[%clk 0:01:25.3]} 18... Bd6 {[%clk 0:01:41.2]} 19. Bd3
{[%clk 0:01:21]} 19... Rd8 {[%clk 0:01:12.4]} 20. Re1+ {[%clk 0:01:19.4]} 20...
Kf8 {[%clk 0:01:12.5]} 21. c5 {[%clk 0:01:06.2]} 21... Nf4 {[%clk 0:00:55.1]}
22. Bxf4 {[%clk 0:00:55]} 22... Qh3+ {[%clk 0:00:55.6]} 23. Ke2 {[%clk
0:00:51.7]} 23... Bxf4 {[%clk 0:00:56.5]} 24. Kd1 {[%clk 0:00:46.7]} 24... g6
{[%clk 0:00:20.5]} 25. Re2 {[%clk 0:00:38.7]} 25... Nd5 {[%clk 0:00:18.4]} 26.
Be4 {[%clk 0:00:33.9]} 26... d3 {[%clk 0:00:18.9]} 27. Ree1 {[%clk 0:00:29.1]}
27... Qg2 {[%clk 0:00:19.2]} 28. Ref1 {[%clk 0:00:15.8]} 28... Ne3+ {[%clk
0:00:18.8]} 0-1

[Event "Late-Titled-Tuesday-Blitz-March-26-2024"]
[Site "Chess.com"]
[Date "2024.03.26"]
[Round "9"]
[White "GelmanAlexander"]
[Black "ImportedItalianMaple"]
[Result "1-0"]
[WhiteElo "2674"]
[BlackElo "2517"]
[TimeControl "180+1"]
[EndTime "15:44:18 PDT"]
[Termination "GelmanAlexander won by resignation"]

1. c4 {[%clk 0:03:00.9]} 1... g6 {[%clk 0:03:00]} 2. Nf3 {[%clk 0:03:00.8]} 2...
Bg7 {[%clk 0:03:00.9]} 3. e3 {[%clk 0:03:01.1]} 3... d6 {[%clk 0:02:58.3]} 4.
Nc3 {[%clk 0:03:00.7]} 4... Nc6 {[%clk 0:02:57.8]} 5. d3 {[%clk 0:03:00.9]} 5...
e5 {[%clk 0:02:57.2]} 6. Be2 {[%clk 0:03:01.3]} 6... f5 {[%clk 0:02:57.7]} 7. a3
{[%clk 0:03:00.3]} 7... Nf6 {[%clk 0:02:57.7]} 8. Qc2 {[%clk 0:02:59.7]} 8...
O-O {[%clk 0:02:55.5]} 9. h3 {[%clk 0:02:59.7]} 9... h6 {[%clk 0:02:55]} 10. Bd2
{[%clk 0:02:59.7]} 10... Be6 {[%clk 0:02:50.2]} 11. b4 {[%clk 0:02:49.4]} 11...
g5 {[%clk 0:02:39.2]} 12. b5 {[%clk 0:02:46.9]} 12... Ne7 {[%clk 0:02:20.7]} 13.
a4 {[%clk 0:02:47.1]} 13... Ng6 {[%clk 0:02:20.2]} 14. a5 {[%clk 0:02:47.1]}
14... Qe7 {[%clk 0:02:18.2]} 15. a6 {[%clk 0:02:46.1]} 15... b6 {[%clk
0:02:14.3]} 16. g3 {[%clk 0:02:35.4]} 16... Rae8 {[%clk 0:02:12.5]} 17. Nh2
{[%clk 0:02:06.8]} 17... d5 {[%clk 0:02:10.1]} 18. cxd5 {[%clk 0:02:02.5]} 18...
Nxd5 {[%clk 0:02:11]} 19. Nxd5 {[%clk 0:02:01]} 19... Bxd5 {[%clk 0:02:10.7]}
20. O-O {[%clk 0:02:01.6]} 20... f4 {[%clk 0:02:01.5]} 21. Bh5 {[%clk
0:01:49.4]} 21... Rf6 {[%clk 0:01:21.1]} 22. Rac1 {[%clk 0:01:45.7]} 22... c5
{[%clk 0:01:15.1]} 23. bxc6 {[%clk 0:01:41.8]} 23... Rxc6 {[%clk 0:01:15.3]} 24.
Qxc6 {[%clk 0:01:40.4]} 24... Bxc6 {[%clk 0:01:15.2]} 25. Rxc6 {[%clk
0:01:41.3]} 25... Nf8 {[%clk 0:01:07.3]} 26. Bxe8 {[%clk 0:01:38.1]} 26... Qxe8
{[%clk 0:01:08.2]} 27. Rc7 {[%clk 0:01:37.1]} 27... e4 {[%clk 0:00:57.9]} 28.
dxe4 {[%clk 0:01:29.6]} 28... Qd8 {[%clk 0:00:46.6]} 29. Rc2 {[%clk 0:01:21]}
29... fxg3 {[%clk 0:00:40.8]} 30. fxg3 {[%clk 0:01:21.8]} 30... Be5 {[%clk
0:00:40]} 31. Ng4 {[%clk 0:01:17.5]} 31... Bxg3 {[%clk 0:00:35.9]} 32. Nxh6+
{[%clk 0:01:17.7]} 32... Kh7 {[%clk 0:00:32.3]} 33. Nf7 {[%clk 0:01:02.2]} 33...
Qd3 {[%clk 0:00:27.9]} 34. Nxg5+ {[%clk 0:00:55.7]} 34... Kg6 {[%clk 0:00:28.1]}
35. Rc6+ {[%clk 0:00:26.7]} 35... Kxg5 {[%clk 0:00:25.5]} 36. Rf5+ {[%clk
0:00:25.7]} 1-0